[Event "Titled Tuesday Blitz May 9 Early 2023"]
[White "koncheto"]
[Black "Vaglio Munoz, Jaime"]
[BlackFideId "6500145"]
[WhiteElo "2460"]
[BlackElo "2199"]
[Result "1-0"]
[Round "07"]
[TimeControl "180+2"]
[Date "2023.05.09"]
[WhiteClock "0:00:44"]
[BlackClock "0:00:44"]

1. e4 {[%clk 0:03:00]}  e6 {[%clk 0:02:58]} 2. d4 {[%clk 0:02:52]}  d5 {[%clk 0:02:58]} 3. Nd2 {[%clk 0:02:52]}  dxe4 {[%clk 0:02:58]} 4. Nxe4 {[%clk 0:02:53]}  Nf6 {[%clk 0:02:58]} 5. Bd3 {[%clk 0:02:51]}  Nbd7 {[%clk 0:02:55]} 6. Qe2 {[%clk 0:02:51]}  Nxe4 {[%clk 0:02:50]} 7. Qxe4 {[%clk 0:02:51]}  Nf6 {[%clk 0:02:50]} 8. Qh4 {[%clk 0:02:51]}  h6 {[%clk 0:02:47]} 9. Nf3 {[%clk 0:02:48]}  Be7 {[%clk 0:02:46]} 10. c3 {[%clk 0:02:45]}  b6 {[%clk 0:02:44]} 11. O-O {[%clk 0:02:26]}  Bb7 {[%clk 0:02:42]} 12. Ne5 {[%clk 0:02:26]}  a6 {[%clk 0:02:31]} 13. f4 {[%clk 0:02:24]}  Qd5 {[%clk 0:02:29]} 14. Qg3 {[%clk 0:02:21]}  g5 {[%clk 0:02:23]} 15. fxg5 {[%clk 0:02:08]}  hxg5 {[%clk 0:02:23]} 16. Bc4 {[%clk 0:02:00]}  Qe4 {[%clk 0:02:20]} 17. Re1 {[%clk 0:01:54]}  Qh4 {[%clk 0:02:18]} 18. Bxg5 {[%clk 0:01:50]}  Qxg3 {[%clk 0:02:16]} 19. hxg3 {[%clk 0:01:51]}  Rg8 {[%clk 0:02:15]} 20. Bf4 {[%clk 0:01:37]}  b5 {[%clk 0:02:12]} 21. Be2 {[%clk 0:01:34]}  Nd5 {[%clk 0:02:13]} 22. Bf3 {[%clk 0:01:33]}  Bg5 {[%clk 0:02:02]} 23. b3 {[%clk 0:01:31]}  O-O-O {[%clk 0:01:35]} 24. Bxg5 {[%clk 0:01:26]}  Rxg5 {[%clk 0:01:31]} 25. Nxf7 {[%clk 0:01:26]}  Rxg3 {[%clk 0:01:29]} 26. Nxd8 {[%clk 0:01:23]}  Kxd8 {[%clk 0:01:30]} 27. c4 {[%clk 0:01:21]}  Rxf3 {[%clk 0:01:22]} 28. gxf3 {[%clk 0:01:19]}  Nf4 {[%clk 0:01:21]} 29. Re3 {[%clk 0:01:09]}  Kd7 {[%clk 0:01:20]} 30. Kh2 {[%clk 0:01:08]}  Kd6 {[%clk 0:01:10]} 31. Rae1 {[%clk 0:01:05]}  a5 {[%clk 0:01:05]} 32. Kg3 {[%clk 0:01:03]}  Nh5+ {[%clk 0:01:00]} 33. Kh4 {[%clk 0:01:03]}  Ng7 {[%clk 0:01:00]} 34. Kg5 {[%clk 0:00:59]}  Bc8 {[%clk 0:01:00]} 35. Kf6 {[%clk 0:00:54]}  Ne8+ {[%clk 0:00:56]} 36. Kf7 {[%clk 0:00:53]}  Kd7 {[%clk 0:00:54]} 37. Rxe6 {[%clk 0:00:47]}  bxc4 {[%clk 0:00:51]} 38. Rxe8 {[%clk 0:00:45]}  c3 {[%clk 0:00:48]} 39. Rxc8 {[%clk 0:00:43]}  Kxc8 {[%clk 0:00:44]} 40. Rc1 {[%clk 0:00:44]} 1-0


[Site "https://www.chess.com"]

[Event "Titled Tuesday Blitz May 9 Early 2023"]
[White "Jiganchine, Roman"]
[Black "Rios Escobar, Adan"]
[WhiteFideId "2603667"]
[BlackFideId "3403645"]
[WhiteElo "2270"]
[BlackElo "2410"]
[Result "0-1"]
[Round "07"]
[TimeControl "180+2"]
[Date "2023.05.09"]
[WhiteClock "0:01:22"]
[BlackClock "0:00:19"]

1. e4 {[%clk 0:02:59]}  c5 {[%clk 0:02:57]} 2. Nf3 {[%clk 0:02:58]}  d6 {[%clk 0:02:58]} 3. Bb5+ {[%clk 0:02:57]}  Nd7 {[%clk 0:02:56]} 4. a4 {[%clk 0:02:56]}  Nf6 {[%clk 0:02:54]} 5. Nc3 {[%clk 0:02:56]}  g6 {[%clk 0:02:43]} 6. O-O {[%clk 0:02:53]}  a6 {[%clk 0:02:43]} 7. Be2 {[%clk 0:02:52]}  Bg7 {[%clk 0:02:44]} 8. d4 {[%clk 0:02:47]}  cxd4 {[%clk 0:02:42]} 9. Qxd4 {[%clk 0:02:46]}  O-O {[%clk 0:02:41]} 10. Nd5 {[%clk 0:02:20]}  Nxd5 {[%clk 0:02:35]} 11. Qxd5 {[%clk 0:02:20]}  Nf6 {[%clk 0:02:33]} 12. Qd3 {[%clk 0:02:19]}  Qc7 {[%clk 0:02:29]} 13. c3 {[%clk 0:02:17]}  b6 {[%clk 0:02:27]} 14. Bf4 {[%clk 0:02:12]}  Nd7 {[%clk 0:02:14]} 15. Qe3 {[%clk 0:02:03]}  Bb7 {[%clk 0:02:10]} 16. Bh6 {[%clk 0:01:58]}  Bxh6 {[%clk 0:02:00]} 17. Qxh6 {[%clk 0:01:57]}  Bxe4 {[%clk 0:01:58]} 18. Ng5 {[%clk 0:01:56]}  Nf6 {[%clk 0:01:59]} 19. Rfe1 {[%clk 0:01:53]}  Qc6 {[%clk 0:01:33]} 20. Bb5 {[%clk 0:01:38]}  axb5 {[%clk 0:01:30]} 21. Rxe4 {[%clk 0:01:38]}  Qxe4 {[%clk 0:01:15]} 22. Nxe4 {[%clk 0:01:38]}  Nxe4 {[%clk 0:01:16]} 23. Qe3 {[%clk 0:01:32]}  Nc5 {[%clk 0:00:48]} 24. Qxe7 {[%clk 0:01:31]}  Rfe8 {[%clk 0:00:48]} 25. Qxd6 {[%clk 0:01:31]}  Nxa4 {[%clk 0:00:34]} 26. h4 {[%clk 0:01:29]}  Rad8 {[%clk 0:00:19]} 27. Qxb6 {[%clk 0:01:22]}  Nxb6 {[%clk 0:00:19]} 0-1


[Site "https://www.chess.com"]

[Event "Titled Tuesday Blitz May 9 Early 2023"]
[White "Topalov, Aleksandar"]
[Black "Levitan, Caleb Levi"]
[WhiteFideId "925659"]
[BlackFideId "14332620"]
[WhiteElo "2151"]
[BlackElo "1963"]
[Result "0-1"]
[Round "07"]
[TimeControl "180+2"]
[Date "2023.05.09"]
[WhiteClock "0:00:00"]
[BlackClock "0:00:08"]

1. b3 {[%clk 0:02:57]}  d5 {[%clk 0:02:59]} 2. Bb2 {[%clk 0:02:55]}  Bf5 {[%clk 0:02:59]} 3. Nf3 {[%clk 0:02:54]}  e6 {[%clk 0:02:59]} 4. g3 {[%clk 0:02:54]}  Nf6 {[%clk 0:02:59]} 5. Bg2 {[%clk 0:02:55]}  Be7 {[%clk 0:02:59]} 6. O-O {[%clk 0:02:55]}  h6 {[%clk 0:02:58]} 7. d3 {[%clk 0:02:55]}  O-O {[%clk 0:02:59]} 8. Nbd2 {[%clk 0:02:54]}  Bh7 {[%clk 0:02:57]} 9. c4 {[%clk 0:02:51]}  c5 {[%clk 0:02:54]} 10. Ne5 {[%clk 0:02:45]}  Nbd7 {[%clk 0:02:49]} 11. Nxd7 {[%clk 0:02:37]}  Qxd7 {[%clk 0:02:49]} 12. cxd5 {[%clk 0:02:37]}  exd5 {[%clk 0:02:47]} 13. Rc1 {[%clk 0:02:33]}  b6 {[%clk 0:02:42]} 14. e4 {[%clk 0:02:18]}  dxe4 {[%clk 0:02:39]} 15. dxe4 {[%clk 0:02:18]}  Rad8 {[%clk 0:02:24]} 16. Nc4 {[%clk 0:01:30]}  Qxd1 {[%clk 0:02:21]} 17. Rcxd1 {[%clk 0:01:29]}  Nxe4 {[%clk 0:02:12]} 18. Bxe4 {[%clk 0:01:18]}  Bxe4 {[%clk 0:02:11]} 19. Rde1 {[%clk 0:01:18]}  Bd3 {[%clk 0:01:44]} 20. Rxe7 {[%clk 0:01:17]}  Bxf1 {[%clk 0:01:44]} 21. Kxf1 {[%clk 0:01:17]}  b5 {[%clk 0:01:44]} 22. Ne3 {[%clk 0:01:12]}  Rd2 {[%clk 0:01:43]} 23. Be5 {[%clk 0:00:56]}  f6 {[%clk 0:01:36]} 24. Bc3 {[%clk 0:00:48]}  Rc2 {[%clk 0:01:33]} 25. Be1 {[%clk 0:00:43]}  Rxa2 {[%clk 0:01:32]} 26. Nf5 {[%clk 0:00:43]}  Rf7 {[%clk 0:01:28]} 27. Re8+ {[%clk 0:00:39]}  Kh7 {[%clk 0:01:28]} 28. Rc8 {[%clk 0:00:38]}  Rc2 {[%clk 0:01:15]} 29. h4 {[%clk 0:00:27]}  h5 {[%clk 0:01:03]} 30. Ne3 {[%clk 0:00:26]}  Rc1 {[%clk 0:00:59]} 31. Ke2 {[%clk 0:00:26]}  Rd7 {[%clk 0:00:54]} 32. Rb8 {[%clk 0:00:18]}  a6 {[%clk 0:00:47]} 33. Rb6 {[%clk 0:00:17]}  Ra1 {[%clk 0:00:40]} 34. Rc6 {[%clk 0:00:16]}  Ra2+ {[%clk 0:00:37]} 35. Kf3 {[%clk 0:00:16]}  Ra3 {[%clk 0:00:34]} 36. Rxc5 {[%clk 0:00:14]}  Rxb3 {[%clk 0:00:35]} 37. Rc6 {[%clk 0:00:13]}  Ra7 {[%clk 0:00:28]} 38. Ba5 {[%clk 0:00:13]}  Ra3 {[%clk 0:00:26]} 39. Bb6 {[%clk 0:00:13]}  Ra8 {[%clk 0:00:25]} 40. Bd4 {[%clk 0:00:11]}  Rb3 {[%clk 0:00:19]} 41. Rc7 {[%clk 0:00:11]}  Kg6 {[%clk 0:00:18]} 42. Kf4 {[%clk 0:00:09]}  a5 {[%clk 0:00:18]} 43. Nd5 {[%clk 0:00:07]}  a4 {[%clk 0:00:16]} 44. Ne7+ {[%clk 0:00:07]}  Kh7 {[%clk 0:00:16]} 45. Nf5 {[%clk 0:00:07]}  Rg8 {[%clk 0:00:14]} 46. Bxf6 {[%clk 0:00:07]}  a3 {[%clk 0:00:13]} 47. Bxg7 {[%clk 0:00:07]}  Kg6 {[%clk 0:00:11]} 48. Be5 {[%clk 0:00:06]}  Rb4+ {[%clk 0:00:11]} 49. Kf3 {[%clk 0:00:05]}  Kxf5 {[%clk 0:00:11]} 50. Bd6 {[%clk 0:00:05]}  a2 {[%clk 0:00:09]} 51. Ra7 {[%clk 0:00:04]}  Rb2 {[%clk 0:00:09]} 52. Rf7+ {[%clk 0:00:00]}  Ke6 {[%clk 0:00:08]} 0-1


[Site "https://www.chess.com"]

[Event "Titled Tuesday Blitz May 9 Early 2023"]
[White "Sargissyan, Sargis"]
[Black "Abrosimov, Vladimir"]
[WhiteFideId "13303210"]
[BlackFideId "4166892"]
[WhiteElo "2109"]
[BlackElo "2336"]
[Result "1-0"]
[Round "07"]
[TimeControl "180+2"]
[Date "2023.05.09"]
[WhiteClock "0:02:31"]
[BlackClock "0:02:12"]

1. e4 {[%clk 0:03:00]}  c5 {[%clk 0:02:59]} 2. Nf3 {[%clk 0:02:59]}  d6 {[%clk 0:03:00]} 3. d4 {[%clk 0:03:00]}  cxd4 {[%clk 0:03:01]} 4. Nxd4 {[%clk 0:03:01]}  Nf6 {[%clk 0:03:01]} 5. Nc3 {[%clk 0:03:02]}  a6 {[%clk 0:03:02]} 6. f4 {[%clk 0:03:01]}  e6 {[%clk 0:03:02]} 7. Qf3 {[%clk 0:03:00]}  Be7 {[%clk 0:03:02]} 8. Be3 {[%clk 0:03:00]}  Nbd7 {[%clk 0:03:03]} 9. g4 {[%clk 0:03:00]}  Qc7 {[%clk 0:03:03]} 10. g5 {[%clk 0:03:01]}  Ng8 {[%clk 0:03:03]} 11. O-O-O {[%clk 0:03:00]}  b5 {[%clk 0:03:03]} 12. f5 {[%clk 0:03:00]}  Bb7 {[%clk 0:03:00]} 13. fxe6 {[%clk 0:03:00]}  fxe6 {[%clk 0:02:55]} 14. Nxe6 {[%clk 0:03:00]}  Qc6 {[%clk 0:02:44]} 15. Nd5 {[%clk 0:02:58]}  Rc8 {[%clk 0:02:38]} 16. Bd3 {[%clk 0:02:57]}  Ne5 {[%clk 0:02:36]} 17. Nxg7+ {[%clk 0:02:54]}  Kd8 {[%clk 0:02:35]} 18. Bb6+ {[%clk 0:02:33]}  Qxb6 {[%clk 0:02:28]} 19. Ne6+ {[%clk 0:02:33]}  Kd7 {[%clk 0:02:12]} 20. Nxb6+ {[%clk 0:02:31]}  Kxe6 {[%clk 0:02:12]} 21. Qf5# {[%clk 0:02:31]} 1-0


[Site "https://www.chess.com"]

[Event "Titled Tuesday Blitz May 9 Early 2023"]
[White "Sai Han Thiha"]
[Black "Tsyhanchuk, Stanislav"]
[WhiteFideId "13012290"]
[BlackFideId "13505130"]
[WhiteElo "1954"]
[BlackElo "2173"]
[Result "1-0"]
[Round "07"]
[TimeControl "180+2"]
[Date "2023.05.09"]
[WhiteClock "0:00:40"]
[BlackClock "0:00:25"]

1. d4 {[%clk 0:02:58]}  Nf6 {[%clk 0:02:59]} 2. c4 {[%clk 0:02:58]}  e6 {[%clk 0:02:59]} 3. Nf3 {[%clk 0:02:58]}  b6 {[%clk 0:02:58]} 4. g3 {[%clk 0:02:58]}  Bb7 {[%clk 0:02:58]} 5. Bg2 {[%clk 0:02:59]}  Bb4+ {[%clk 0:02:57]} 6. Bd2 {[%clk 0:02:59]}  Bxd2+ {[%clk 0:02:57]} 7. Qxd2 {[%clk 0:03:00]}  O-O {[%clk 0:02:57]} 8. Nc3 {[%clk 0:03:00]}  c5 {[%clk 0:02:57]} 9. d5 {[%clk 0:02:34]}  exd5 {[%clk 0:02:53]} 10. cxd5 {[%clk 0:02:35]}  d6 {[%clk 0:02:53]} 11. O-O {[%clk 0:02:24]}  Nbd7 {[%clk 0:02:53]} 12. e4 {[%clk 0:02:20]}  Re8 {[%clk 0:02:50]} 13. Rfe1 {[%clk 0:02:20]}  a6 {[%clk 0:02:48]} 14. a4 {[%clk 0:02:19]}  Qc7 {[%clk 0:02:47]} 15. Nh4 {[%clk 0:02:17]}  c4 {[%clk 0:02:33]} 16. Nf5 {[%clk 0:02:15]}  g6 {[%clk 0:02:31]} 17. Qg5 {[%clk 0:02:05]}  Kh8 {[%clk 0:02:03]} 18. Nh6 {[%clk 0:01:56]}  Kg7 {[%clk 0:02:02]} 19. f4 {[%clk 0:01:44]}  Rad8 {[%clk 0:01:51]} 20. Nf5+ {[%clk 0:01:33]}  Kh8 {[%clk 0:01:44]} 21. Nh6 {[%clk 0:01:29]}  Kg7 {[%clk 0:01:44]} 22. Rad1 {[%clk 0:01:29]}  Bc8 {[%clk 0:01:23]} 23. Nf5+ {[%clk 0:01:10]}  Kh8 {[%clk 0:01:21]} 24. Nd4 {[%clk 0:01:10]}  Kg7 {[%clk 0:01:13]} 25. Kh1 {[%clk 0:01:08]}  Nc5 {[%clk 0:01:11]} 26. Nc6 {[%clk 0:01:05]}  Rd7 {[%clk 0:01:07]} 27. e5 {[%clk 0:01:02]}  dxe5 {[%clk 0:00:55]} 28. fxe5 {[%clk 0:01:03]}  Ng8 {[%clk 0:00:51]} 29. d6 {[%clk 0:01:02]}  Qb7 {[%clk 0:00:38]} 30. Ne7 {[%clk 0:01:00]}  Qa7 {[%clk 0:00:32]} 31. Ncd5 {[%clk 0:00:45]}  Ne6 {[%clk 0:00:23]} 32. Qh4 {[%clk 0:00:37]}  Nxe7 {[%clk 0:00:17]} 33. Qf6+ {[%clk 0:00:36]}  Kg8 {[%clk 0:00:16]} 34. Nxe7+ {[%clk 0:00:33]}  Rdxe7 {[%clk 0:00:17]} 35. dxe7 {[%clk 0:00:34]}  Qxe7 {[%clk 0:00:18]} 36. Bd5 {[%clk 0:00:24]}  Qxf6 {[%clk 0:00:14]} 37. exf6 {[%clk 0:00:24]}  b5 {[%clk 0:00:14]} 38. axb5 {[%clk 0:00:21]}  axb5 {[%clk 0:00:15]} 39. Bc6 {[%clk 0:00:22]}  Rf8 {[%clk 0:00:13]} 40. Bxb5 {[%clk 0:00:21]}  Bb7+ {[%clk 0:00:13]} 41. Kg1 {[%clk 0:00:21]}  Rc8 {[%clk 0:00:14]} 42. Bd7 {[%clk 0:00:20]}  Rd8 {[%clk 0:00:10]} 43. Bxe6 {[%clk 0:00:20]}  Rxd1 {[%clk 0:00:10]} 44. Rxd1 {[%clk 0:00:21]}  fxe6 {[%clk 0:00:10]} 45. f7+ {[%clk 0:00:21]}  Kxf7 {[%clk 0:00:10]} 46. Rd7+ {[%clk 0:00:22]}  Kf6 {[%clk 0:00:10]} 47. Rxb7 {[%clk 0:00:22]}  Ke5 {[%clk 0:00:11]} 48. Kf2 {[%clk 0:00:23]}  Kd4 {[%clk 0:00:11]} 49. Re7 {[%clk 0:00:23]}  e5 {[%clk 0:00:11]} 50. Kf3 {[%clk 0:00:24]}  g5 {[%clk 0:00:08]} 51. g4 {[%clk 0:00:24]}  h6 {[%clk 0:00:08]} 52. h3 {[%clk 0:00:24]}  Kd5 {[%clk 0:00:09]} 53. Ke3 {[%clk 0:00:24]}  Kd6 {[%clk 0:00:09]} 54. Rh7 {[%clk 0:00:24]}  Kd5 {[%clk 0:00:10]} 55. Rxh6 {[%clk 0:00:25]}  e4 {[%clk 0:00:10]} 56. Rg6 {[%clk 0:00:25]}  c3 {[%clk 0:00:11]} 57. Rxg5+ {[%clk 0:00:26]}  Kc4 {[%clk 0:00:12]} 58. bxc3 {[%clk 0:00:26]}  Kxc3 {[%clk 0:00:13]} 59. Kxe4 {[%clk 0:00:27]}  Kc4 {[%clk 0:00:13]} 60. h4 {[%clk 0:00:28]}  Kc3 {[%clk 0:00:14]} 61. h5 {[%clk 0:00:28]}  Kd2 {[%clk 0:00:15]} 62. Rf5 {[%clk 0:00:29]}  Ke1 {[%clk 0:00:16]} 63. h6 {[%clk 0:00:30]}  Kd1 {[%clk 0:00:17]} 64. h7 {[%clk 0:00:31]}  Kc1 {[%clk 0:00:18]} 65. h8=Q {[%clk 0:00:32]}  Kb1 {[%clk 0:00:19]} 66. Qe5 {[%clk 0:00:33]}  Kc2 {[%clk 0:00:20]} 67. Kf4 {[%clk 0:00:34]}  Kc1 {[%clk 0:00:21]} 68. Rf6 {[%clk 0:00:35]}  Kd1 {[%clk 0:00:22]} 69. Rd6+ {[%clk 0:00:36]}  Kc1 {[%clk 0:00:22]} 70. Qe7 {[%clk 0:00:37]}  Kc2 {[%clk 0:00:23]} 71. Qc7+ {[%clk 0:00:37]}  Kb1 {[%clk 0:00:24]} 72. Rd8 {[%clk 0:00:38]}  Ka1 {[%clk 0:00:24]} 73. Rb8 {[%clk 0:00:39]}  Ka2 {[%clk 0:00:25]} 74. Qa7# {[%clk 0:00:40]} 1-0


[Site "https://www.chess.com"]

[Event "Titled Tuesday Blitz May 9 Early 2023"]
[White "Tarasova, Viktoriya"]
[Black "Ramirez, Maria Eugenia"]
[WhiteFideId "4175840"]
[BlackFideId "3301680"]
[WhiteElo "2182"]
[BlackElo "1842"]
[Result "1-0"]
[Round "07"]
[TimeControl "180+2"]
[Date "2023.05.09"]
[WhiteClock "0:00:55"]
[BlackClock "0:00:00"]

1. d4 {[%clk 0:02:57]}  Nf6 {[%clk 0:02:59]} 2. c4 {[%clk 0:02:55]}  e6 {[%clk 0:02:59]} 3. Nc3 {[%clk 0:02:55]}  c5 {[%clk 0:02:59]} 4. d5 {[%clk 0:02:55]}  exd5 {[%clk 0:03:00]} 5. cxd5 {[%clk 0:02:55]}  d6 {[%clk 0:03:00]} 6. Nf3 {[%clk 0:02:55]}  g6 {[%clk 0:03:01]} 7. Bf4 {[%clk 0:02:55]}  Na6 {[%clk 0:02:52]} 8. h3 {[%clk 0:02:54]}  Nc7 {[%clk 0:02:51]} 9. e4 {[%clk 0:02:54]}  Bg7 {[%clk 0:02:50]} 10. a4 {[%clk 0:02:53]}  O-O {[%clk 0:02:50]} 11. Bd3 {[%clk 0:02:53]}  Re8 {[%clk 0:02:47]} 12. O-O {[%clk 0:02:53]}  a6 {[%clk 0:02:43]} 13. Re1 {[%clk 0:02:53]}  b6 {[%clk 0:02:41]} 14. Bc4 {[%clk 0:02:52]}  Rb8 {[%clk 0:02:39]} 15. e5 {[%clk 0:02:51]}  Nh5 {[%clk 0:02:33]} 16. Bh2 {[%clk 0:02:43]}  dxe5 {[%clk 0:02:30]} 17. Nxe5 {[%clk 0:02:39]}  Bd7 {[%clk 0:02:00]} 18. Nc6 {[%clk 0:02:32]}  Bxc6 {[%clk 0:01:59]} 19. dxc6 {[%clk 0:02:33]}  Rc8 {[%clk 0:01:41]} 20. Qxd8 {[%clk 0:02:21]}  Rexd8 {[%clk 0:01:41]} 21. Re7 {[%clk 0:02:21]}  Ne6 {[%clk 0:01:36]} 22. c7 {[%clk 0:01:59]}  Rd2 {[%clk 0:01:06]} 23. Bxa6 {[%clk 0:01:50]}  Rxc7 {[%clk 0:00:55]} 24. Bxc7 {[%clk 0:01:45]}  Bd4 {[%clk 0:00:55]} 25. Ne4 {[%clk 0:01:35]}  Rxb2 {[%clk 0:00:50]} 26. Rf1 {[%clk 0:01:25]}  Nhf4 {[%clk 0:00:22]} 27. Bc4 {[%clk 0:01:17]}  Rc2 {[%clk 0:00:10]} 28. Bxe6 {[%clk 0:01:11]}  Nxe6 {[%clk 0:00:10]} 29. Bxb6 {[%clk 0:01:10]}  Re2 {[%clk 0:00:08]} 30. Nd6 {[%clk 0:01:01]}  f5 {[%clk 0:00:06]} 31. a5 {[%clk 0:00:56]}  Kf8 {[%clk 0:00:04]} 32. Re8+ {[%clk 0:00:54]}  Kg7 {[%clk 0:00:00]} 33. a6 {[%clk 0:00:55]} 1-0


[Site "https://www.chess.com"]

[Event "Titled Tuesday Blitz May 9 Early 2023"]
[White "Feinig, Mario"]
[Black "Tarnowska, Aleksandra"]
[WhiteFideId "1618113"]
[BlackFideId "1180967"]
[WhiteElo "2163"]
[BlackElo "1776"]
[Result "1-0"]
[Round "07"]
[TimeControl "180+2"]
[Date "2023.05.09"]
[WhiteClock "0:00:45"]
[BlackClock "0:00:00"]

1. d4 {[%clk 0:02:52]}  d5 {[%clk 0:02:59]} 2. Nf3 {[%clk 0:02:50]}  Nf6 {[%clk 0:02:59]} 3. e3 {[%clk 0:02:46]}  c6 {[%clk 0:02:57]} 4. Bd3 {[%clk 0:02:46]}  Bg4 {[%clk 0:02:53]} 5. Nbd2 {[%clk 0:02:41]}  e6 {[%clk 0:02:52]} 6. c3 {[%clk 0:02:36]}  Bd6 {[%clk 0:02:50]} 7. e4 {[%clk 0:02:20]}  dxe4 {[%clk 0:02:00]} 8. Nxe4 {[%clk 0:02:21]}  Nxe4 {[%clk 0:01:56]} 9. Bxe4 {[%clk 0:02:21]}  Nd7 {[%clk 0:01:56]} 10. h3 {[%clk 0:01:57]}  Bh5 {[%clk 0:01:54]} 11. g4 {[%clk 0:01:57]}  Bg6 {[%clk 0:01:54]} 12. Qe2 {[%clk 0:01:54]}  Nf6 {[%clk 0:01:47]} 13. Bxg6 {[%clk 0:01:39]}  hxg6 {[%clk 0:01:48]} 14. Bg5 {[%clk 0:01:39]}  Qb6 {[%clk 0:01:20]} 15. Bxf6 {[%clk 0:01:13]}  gxf6 {[%clk 0:01:18]} 16. O-O-O {[%clk 0:01:13]}  a5 {[%clk 0:00:52]} 17. h4 {[%clk 0:01:11]}  a4 {[%clk 0:00:51]} 18. h5 {[%clk 0:01:10]}  Ke7 {[%clk 0:00:42]} 19. hxg6 {[%clk 0:01:06]}  fxg6 {[%clk 0:00:43]} 20. Rde1 {[%clk 0:01:03]}  Bf4+ {[%clk 0:00:13]} 21. Kb1 {[%clk 0:01:01]}  c5 {[%clk 0:00:12]} 22. dxc5 {[%clk 0:00:58]}  Qc6 {[%clk 0:00:11]} 23. Nd4 {[%clk 0:00:56]}  Qd5 {[%clk 0:00:03]} 24. Nxe6 {[%clk 0:00:51]}  Rxh1 {[%clk 0:00:03]} 25. Nxf4+ {[%clk 0:00:51]}  Kf7 {[%clk 0:00:01]} 26. Nxd5 {[%clk 0:00:44]}  Rxe1+ {[%clk 0:00:00]} 27. Qxe1 {[%clk 0:00:45]} 1-0


[Site "https://www.chess.com"]

[Event "Titled Tuesday Blitz May 9 Early 2023"]
[White "KorolDimitriy75"]
[Black "Brueckner, Thomas"]
[BlackFideId "4600452"]
[WhiteElo "2441"]
[BlackElo "2322"]
[Result "1/2-1/2"]
[Round "07"]
[TimeControl "180+2"]
[Date "2023.05.09"]
[WhiteClock "0:00:14"]
[BlackClock "0:00:22"]

1. d4 {[%clk 0:03:00]}  Nf6 {[%clk 0:02:59]} 2. c4 {[%clk 0:03:00]}  e6 {[%clk 0:02:59]} 3. Nc3 {[%clk 0:03:01]}  Bb4 {[%clk 0:02:58]} 4. Qc2 {[%clk 0:03:01]}  d5 {[%clk 0:02:57]} 5. cxd5 {[%clk 0:03:00]}  exd5 {[%clk 0:02:56]} 6. Bg5 {[%clk 0:03:00]}  h6 {[%clk 0:02:51]} 7. Bxf6 {[%clk 0:02:58]}  Qxf6 {[%clk 0:02:50]} 8. a3 {[%clk 0:02:59]}  Bxc3+ {[%clk 0:02:48]} 9. Qxc3 {[%clk 0:03:00]}  O-O {[%clk 0:02:46]} 10. e3 {[%clk 0:03:01]}  Bf5 {[%clk 0:02:42]} 11. Ne2 {[%clk 0:03:01]}  c6 {[%clk 0:02:28]} 12. Ng3 {[%clk 0:03:01]}  Bg6 {[%clk 0:02:29]} 13. Be2 {[%clk 0:03:02]}  Nd7 {[%clk 0:02:28]} 14. O-O {[%clk 0:03:02]}  Rfe8 {[%clk 0:02:27]} 15. b4 {[%clk 0:03:02]}  Rac8 {[%clk 0:02:25]} 16. Rfc1 {[%clk 0:03:01]}  Qg5 {[%clk 0:02:16]} 17. b5 {[%clk 0:02:35]}  c5 {[%clk 0:02:07]} 18. dxc5 {[%clk 0:02:32]}  Nxc5 {[%clk 0:02:00]} 19. Qb4 {[%clk 0:02:06]}  b6 {[%clk 0:01:54]} 20. Rd1 {[%clk 0:01:51]}  h5 {[%clk 0:01:46]} 21. Rd4 {[%clk 0:01:43]}  Ne4 {[%clk 0:01:38]} 22. Bf3 {[%clk 0:01:22]}  h4 {[%clk 0:01:05]} 23. Nxe4 {[%clk 0:00:29]}  dxe4 {[%clk 0:01:06]} 24. Bxe4 {[%clk 0:00:29]}  h3 {[%clk 0:00:57]} 25. g3 {[%clk 0:00:21]}  Bxe4 {[%clk 0:00:48]} 26. Rxe4 {[%clk 0:00:21]}  Qd5 {[%clk 0:00:48]} 27. f3 {[%clk 0:00:15]}  Rxe4 {[%clk 0:00:32]} 28. Qxe4 {[%clk 0:00:15]}  Qxe4 {[%clk 0:00:32]} 29. fxe4 {[%clk 0:00:15]}  Rc2 {[%clk 0:00:30]} 30. Rd1 {[%clk 0:00:15]}  Ra2 {[%clk 0:00:26]} 31. Rd3 {[%clk 0:00:13]}  Rg2+ {[%clk 0:00:24]} 32. Kh1 {[%clk 0:00:13]}  Ra2 {[%clk 0:00:24]} 33. Kg1 {[%clk 0:00:14]}  Rg2+ {[%clk 0:00:23]} 34. Kh1 {[%clk 0:00:14]}  Ra2 {[%clk 0:00:22]} 35. Kg1 {[%clk 0:00:14]} 1/2-1/2


[Site "https://www.chess.com"]